fUSD/lending_fUSD_20241107
["ID","MTS","AMOUNT","RATE_DAILY","PERIOD"]
[341537625,1730967049628,-500.0,0.0003041,4]
[341537626,1730967049637,-500.0,0.0003041,4]
[341537627,1730967049647,-500.0,0.0003041,4]
[341537628,1730967049656,-500.0,0.0003041,4]
[341537629,1730967049666,-500.0,0.0003041,4]
[341537630,1730967049675,-240.89886215,0.0003041,4]
[341537631,1730967050140,-259.10113785,0.0003041,4]
[341537632,1730967050151,-500.0,0.0003041,4]
[341537633,1730967050162,-608.12,0.0003041,4]
[341537634,1730967050171,-533.85,0.0003041,4]
[341537635,1730967050181,-795.66,0.0003041,4]
[341537636,1730967050192,-569.38,0.0003041,4]
[341537637,1730967050201,-500.0,0.0003041,4]
[341537638,1730967050211,-699.4,0.0003041,4]
[341537639,1730967050221,-500.0,0.0003041,4]
[341537640,1730967050230,-500.0,0.0003041,4]
[341537641,1730967050240,-500.0,0.0003041,4]
[341537642,1730967050249,-615.1,0.0003041,4]
[341537643,1730967050259,-466.21798614,0.0003041,4]
[341537644,1730967050271,-33.78201386,0.0003041,4]
[341537645,1730967050284,-500.0,0.0003041,4]
[341537646,1730967050294,-500.0,0.0003041,4]
[341537647,1730967050303,-500.0,0.0003041,4]
[341537648,1730967050313,-1358.88,0.0003041,4]
[341537649,1730967050323,-500.0,0.0003041,4]
[341537650,1730967050333,-500.0,0.0003041,4]
[341537651,1730967050342,-500.0,0.0003041,4]
[341537652,1730967050352,-500.0,0.0003041,4]
[341537653,1730967050362,-1687.7,0.0003041,4]
[341537654,1730967050372,-500.0,0.0003041,4]
[341537655,1730967050382,-500.0,0.0003041,4]
[341537656,1730967050391,-1447.0,0.0003041,4]
[341537657,1730967050401,-761.63,0.0003041,4]
[341537658,1730967050410,-500.0,0.0003041,4]
[341537659,1730967050420,-500.0,0.0003041,4]
[341537660,1730967050430,-500.0,0.0003041,4]
[341537661,1730967050439,-674.98,0.0003041,4]
[341537662,1730967050449,-1000.0,0.0003041,10]
[341537663,1730967050459,-526.33,0.0003041,4]
[341537664,1730967050469,-500.0,0.0003041,4]
[341537665,1730967050479,-500.0,0.0003041,4]
[341537666,1730967050488,-500.0,0.0003041,4]
[341537667,1730967050498,-500.0,0.0003041,4]
[341537668,1730967050508,-596.28,0.0003041,4]
[341537669,1730967050518,-500.0,0.0003041,4]
[341537670,1730967050529,-500.0,0.0003041,4]
[341537671,1730967050539,-500.0,0.0003041,4]
[341537672,1730967050549,-500.0,0.0003041,4]
[341537673,1730967050559,-500.0,0.0003041,4]
[341537674,1730967050569,-500.0,0.0003041,4]
[341537675,1730967050579,-500.0,0.0003041,4]
[341537676,1730967050590,-500.0,0.0003041,4]
[341537677,1730967050599,-500.0,0.0003041,4]
[341537678,1730967050609,-243.01972306,0.0003041,4]
[341537679,1730967050619,-558.98,0.0003041,4]
[341537680,1730967050628,-1131.84,0.0003041,4]
[341537681,1730967050639,-500.0,0.0003041,4]
[341537682,1730967050649,-713.99,0.0003041,4]
[341537683,1730967050659,-769.62,0.0003041,4]
[341537684,1730967050668,-500.0,0.0003041,4]
[341537685,1730967050678,-1670.61,0.0003041,4]
[341537686,1730967050687,-500.0,0.0003041,4]
[341537687,1730967050697,-357.41226755,0.0003041,4]
[341537688,1730967050708,-621.66,0.0003041,4]
[341537689,1730967050718,-500.0,0.0003041,4]
[341537690,1730967050728,-649.67,0.0003041,4]
[341537691,1730967050737,-500.0,0.0003041,4]
[341537692,1730967050747,-500.0,0.0003041,4]
[341537693,1730967050757,-500.0,0.0003041,4]
[341537694,1730967050767,-578.34,0.0003041,4]
[341537695,1730967050779,-500.0,0.0003041,4]
[341537696,1730967050789,-528.41,0.0003041,4]
[341537697,1730967050798,-337.69993852,0.0003041,4]
[341537698,1730967050808,-500.0,0.0003041,4]
[341537699,1730967050818,-2137.54,0.0003041,4]
[341537700,1730967050827,-500.0,0.0003041,4]
[341537701,1730967050837,-1617.36,0.0003041,4]
[341537702,1730967050846,-547.66,0.0003041,4]
[341537703,1730967050929,-796.13,0.0003041,4]
[341537704,1730967050939,-555.05,0.0003041,4]
[341537705,1730967050951,-500.0,0.0003041,4]
[341537706,1730967050962,-399.8086372,0.0003041,4]
[341537707,1730967050971,-151.0,0.0003041,7]
[341537708,1730967050982,-500.0,0.0003041,4]
[341537709,1730967050991,-500.0,0.0003041,4]
[341537710,1730967051000,-500.0,0.0003041,4]
[341537711,1730967051009,-604.03,0.0003041,4]
[341537712,1730967051018,-500.0,0.0003041,4]
[341537713,1730967051028,-1097.49,0.0003041,4]
[341537714,1730967051038,-500.0,0.0003041,4]
[341537715,1730967051047,-1429.55,0.0003041,4]
[341537716,1730967051061,-500.0,0.0003041,4]
[341537717,1730967051071,-1746.13,0.0003041,4]
[341537718,1730967051081,-500.0,0.0003041,4]
[341537719,1730967051090,-500.0,0.0003041,4]
[341537720,1730967051099,-500.0,0.0003041,4]
[341537721,1730967051109,-500.0,0.0003041,4]
[341537722,1730967051119,-1213.09,0.0003041,4]
[341537723,1730967051130,-599.64,0.0003041,4]
[341537724,1730967051139,-500.0,0.0003041,4]
[341537725,1730967051149,-500.0,0.0003041,4]
[341537726,1730967051159,-500.0,0.0003041,4]
[341537727,1730967051168,-533.46553256,0.0003041,4]
[341537728,1730967051178,-500.0,0.0003041,4]
[341537729,1730967051188,-500.0,0.0003041,4]
[341537730,1730967051197,-500.0,0.0003041,4]
[341537731,1730967051207,-721.46,0.0003041,4]
[341537732,1730967051216,-500.0,0.0003041,4]
[341537733,1730967051226,-1044.92,0.0003041,4]
[341537734,1730967051235,-500.0,0.0003041,4]
[341537735,1730967051245,-1498.88,0.0003041,4]
[341537736,1730967051254,-500.0,0.0003041,4]
[341537737,1730967051264,-500.0,0.0003041,4]
[341537738,1730967051273,-708.79,0.0003041,4]
[341537739,1730967051284,-500.0,0.0003041,4]
[341537740,1730967051293,-2150.76,0.0003041,4]
[341537741,1730967051303,-1447.49,0.0003041,4]
[341537742,1730967051313,-522.55050271,0.0003041,4]
[341537743,1730967051322,-513.25002664,0.0003041,4]
[341537744,1730967051331,-500.0,0.0003041,4]
[341537745,1730967051341,-500.0,0.0003041,4]
[341537746,1730967051350,-500.0,0.0003041,4]
[341537747,1730967051360,-681.18,0.0003041,4]
[341537748,1730967051369,-500.0,0.0003041,4]
[341537749,1730967051379,-500.0,0.0003041,4]
[341537750,1730967051388,-500.0,0.0003041,4]
[341537751,1730967051398,-500.0,0.0003041,4]
[341537752,1730967051407,-500.0,0.0003041,4]
[341537753,1730967051416,-741.18,0.0003041,4]
[341537754,1730967051426,-500.0,0.0003041,4]
[341537755,1730967051437,-503.29,0.0003041,4]
[341537756,1730967051446,-500.0,0.0003041,4]
[341537757,1730967051456,-1001.08,0.0003041,4]
[341537758,1730967051465,-552.9,0.0003041,4]
[341537759,1730967051475,-1457.39,0.0003041,4]
[341537760,1730967051485,-500.0,0.0003041,4]
[341537761,1730967051494,-500.0,0.0003041,4]
[341537762,1730967051503,-500.0,0.0003041,4]
[341537763,1730967051512,-151.0,0.0003041,7]
[341537764,1730967051522,-500.0,0.0003041,4]
[341537765,1730967051531,-651.52,0.0003041,4]
[341537766,1730967051541,-500.0,0.0003041,4]
[341537767,1730967051550,-500.0,0.0003041,4]
[341537768,1730967051559,-638.1,0.0003041,4]
[341537769,1730967051568,-500.0,0.0003041,4]
[341537770,1730967051577,-500.0,0.0003041,4]
[341537771,1730967051587,-716.82,0.0003041,4]
[341537772,1730967051596,-1201.41,0.0003041,4]
[341537773,1730967051605,-500.0,0.0003041,4]
[341537774,1730967051615,-500.0,0.0003041,4]
[341537775,1730967051624,-847.7,0.0003041,4]
[341537776,1730967051634,-500.0,0.0003041,4]
[341537777,1730967051644,-520.46,0.0003041,4]
[341537778,1730967051654,-500.0,0.0003041,4]
[341537779,1730967051663,-1715.47,0.0003041,4]
[341537780,1730967051672,-500.0,0.0003041,4]
[341537781,1730967051681,-500.0,0.0003041,4]
[341537782,1730967051690,-500.0,0.0003041,4]
[341537783,1730967051699,-500.0,0.0003041,4]
[341537784,1730967051709,-215.56323139,0.0003041,4]
[341537785,1730967051718,-1603.87,0.0003041,4]
[341537786,1730967051727,-635.91,0.0003041,4]
[341537787,1730967051736,-500.0,0.0003041,4]
[341537788,1730967051746,-1141.25,0.0003041,4]
[341537789,1730967051756,-500.0,0.0003041,4]
[341537790,1730967051765,-500.0,0.0003041,4]
[341537791,1730967051775,-1597.55,0.0003041,4]
[341537792,1730967051791,-500.0,0.0003041,4]
[341537793,1730967051800,-633.49,0.0003041,4]
[341537794,1730967051809,-500.0,0.0003041,4]
[341537795,1730967051818,-500.0,0.0003041,4]
[341537796,1730967051827,-500.0,0.0003041,4]
[341537797,1730967051836,-151.0,0.0003041,7]
[341537798,1730967051845,-151.0,0.0003041,7]
[341537799,1730967051855,-1349.99,0.0003041,4]
[341537800,1730967051863,-1095.95,0.0003041,4]
[341537801,1730967051873,-500.0,0.0003041,4]
[341537802,1730967051882,-500.0,0.0003041,4]
[341537803,1730967051891,-500.0,0.0003041,4]
[341537804,1730967051901,-500.0,0.0003041,4]
[341537805,1730967051912,-1386.63,0.0003041,4]
[341537806,1730967051921,-500.0,0.0003041,4]
[341537807,1730967051930,-807.18,0.0003041,4]
[341537808,1730967051940,-500.0,0.0003041,4]
[341537809,1730967051950,-500.0,0.0003041,4]
[341537810,1730967051959,-1475.69,0.0003041,4]
[341537811,1730967051968,-500.0,0.0003041,4]
[341537812,1730967051978,-500.0,0.0003041,4]
[341537813,1730967051987,-500.0,0.0003041,4]
[341537814,1730967051996,-815.65,0.0003041,4]
[341537815,1730967052007,-500.0,0.0003041,4]
[341537816,1730967052016,-500.0,0.0003041,4]
[341537817,1730967052026,-500.0,0.0003041,4]
[341537818,1730967052035,-1062.46,0.0003041,4]
[341537819,1730967052045,-316.50516213,0.0003041,4]
[341537820,1730967052054,-965.8,0.0003041,4]
[341537821,1730967052066,-500.0,0.0003041,4]
[341537822,1730967052076,-500.0,0.0003041,4]
[341537823,1730967052085,-1217.74,0.0003041,4]
[341537824,1730967052094,-628.65,0.0003041,4]
[341537825,1730967052105,-1100.28,0.0003041,4]
[341537826,1730967052114,-500.0,0.0003041,4]
[341537827,1730967052123,-538.3,0.0003041,4]
[341537828,1730967052135,-579.05,0.0003041,4]
[341537829,1730967052144,-1124.11,0.0003041,4]
[341537830,1730967052155,-595.56,0.0003041,4]
[341537831,1730967052164,-500.0,0.0003041,4]
[341537832,1730967052174,-740.96,0.0003041,4]
[341537833,1730967052184,-500.0,0.0003041,4]
[341537834,1730967052193,-350.6159661,0.0003041,4]
[341537835,1730967052203,-664.21,0.0003041,4]
[341537836,1730967052212,-500.0,0.0003041,4]
[341537837,1730967052222,-500.0,0.0003041,4]
[341537838,1730967052231,-500.0,0.0003041,4]
[341537839,1730967052240,-500.0,0.0003041,4]
[341537840,1730967052250,-516.91,0.0003041,4]
[341537841,1730967052258,-1171.35,0.0003041,4]
[341537842,1730967052268,-500.0,0.0003041,4]
[341537843,1730967052279,-1200.81,0.0003041,4]
[341537844,1730967052289,-677.31,0.0003041,4]
[341537845,1730967052298,-500.0,0.0003041,4]
[341537846,1730967052308,-500.0,0.0003041,4]
[341537847,1730967052318,-500.0,0.0003041,4]
[341537848,1730967052327,-872.23,0.0003041,4]
[341537849,1730967052337,-1338.64,0.0003041,4]
[341537850,1730967052346,-500.0,0.0003041,4]
[341537851,1730967052359,-500.0,0.0003041,4]
[341537852,1730967052368,-500.0,0.0003041,4]
[341537853,1730967052377,-654.0,0.0003041,4]
[341537854,1730967052386,-500.0,0.0003041,4]
[341537855,1730967052395,-500.0,0.0003041,4]
[341537856,1730967052404,-500.0,0.0003041,4]
[341537857,1730967052413,-500.0,0.0003041,4]
[341537858,1730967052423,-1703.54,0.0003041,4]
[341537859,1730967052432,-500.0,0.0003041,4]
[341537860,1730967052441,-500.0,0.0003041,4]
[341537861,1730967052450,-1950.14,0.0003041,4]
[341537862,1730967052459,-500.0,0.0003041,4]
[341537863,1730967052469,-567.99,0.0003041,4]
[341537864,1730967052478,-500.0,0.0003041,4]
[341537865,1730967052487,-500.0,0.0003041,4]
[341537866,1730967052496,-870.6,0.0003041,2]
[341537867,1730967052505,-729.27,0.0003041,4]
[341537868,1730967052514,-924.14,0.0003041,4]
[341537869,1730967052523,-1053.11,0.0003041,4]
[341537870,1730967052535,-500.0,0.0003041,4]
[341537871,1730967052544,-500.0,0.0003041,4]
[341537872,1730967052554,-500.0,0.0003041,4]
[341537873,1730967052563,-519.15,0.0003041,4]
[341537874,1730967052572,-500.0,0.0003041,4]
[341537875,1730967052581,-500.0,0.0003041,4]
[341537876,1730967052590,-500.0,0.0003041,4]
[341537877,1730967052599,-481.85598018,0.0003041,4]
[341537878,1730967052608,-1401.8,0.0003041,4]
[341537879,1730967052617,-9.35341156,0.0003041,4]
[341537880,1730967052641,-823.02658844,0.0003041,4]
[341537881,1730967052650,-1199.44,0.0003041,4]
[341537882,1730967052659,-500.0,0.0003041,4]
[341537883,1730967052669,-500.0,0.0003041,4]
[341537884,1730967052678,-500.0,0.0003041,4]
[341537885,1730967052687,-500.0,0.0003041,4]
[341537886,1730967052696,-608.56,0.0003041,4]
[341537887,1730967052706,-500.0,0.0003041,4]
[341537888,1730967052715,-500.0,0.0003041,4]
[341537889,1730967052724,-740.99,0.0003041,4]
[341537890,1730967052733,-523.92,0.0003041,4]
[341537891,1730967052742,-500.0,0.0003041,4]
[341537892,1730967052751,-500.0,0.0003041,4]
[341537893,1730967052760,-747.55,0.0003041,4]
[341537894,1730967052769,-500.0,0.0003041,4]
[341537895,1730967052780,-500.0,0.0003041,4]
[341537896,1730967052790,-1345.35,0.0003041,4]
[341537897,1730967052799,-622.53,0.0003041,4]
[341537898,1730967052808,-500.0,0.0003041,4]
[341537899,1730967052817,-718.96,0.0003041,4]
[341537900,1730967052826,-500.0,0.0003041,4]
[341537901,1730967052835,-577.36084594,0.0003041,4]
[341537902,1730967052845,-500.0,0.0003041,4]
[341537903,1730967052854,-1472.45,0.0003041,4]
[341537904,1730967052864,-509.25666872,0.0003041,4]
[341537905,1730967052873,-652.55,0.0003041,4]
[341537906,1730967052882,-500.0,0.0003041,4]
[341537907,1730967052891,-500.0,0.0003041,4]
[341537908,1730967052900,-553.41,0.0003041,4]
[341537909,1730967052911,-500.0,0.0003041,4]
[341537910,1730967052921,-500.0,0.0003041,4]
[341537911,1730967052932,-500.0,0.0003041,4]
[341537912,1730967052943,-571.01,0.0003041,4]
[341537913,1730967052953,-745.9,0.0003041,4]
[341537914,1730967052962,-500.0,0.0003041,4]
[341537915,1730967052971,-500.0,0.0003041,4]
[341537916,1730967052980,-119.49835175,0.0003041,4]
[341537917,1730967053002,-380.50164825,0.0003041,4]
[341537918,1730967053011,-1171.99,0.0003041,4]
[341537919,1730967053020,-688.37,0.0003041,4]
[341537920,1730967053030,-534.52,0.0003041,4]
[341537921,1730967053039,-500.0,0.0003041,4]
[341537922,1730967053048,-1365.15,0.0003041,4]
[341537923,1730967053060,-500.0,0.0003041,4]
[341537924,1730967053069,-586.25,0.0003041,4]
[341537925,1730967053078,-924.94,0.0003041,4]
[341537926,1730967053087,-500.0,0.0003041,4]
[341537927,1730967053096,-500.0,0.0003041,4]
[341537928,1730967053105,-500.0,0.0003041,4]
[341537929,1730967053114,-536.16,0.0003041,4]
[341537930,1730967053123,-1069.68,0.0003041,4]
[341537931,1730967053135,-500.0,0.0003041,4]
[341537932,1730967053145,-1427.23,0.0003041,4]
[341537933,1730967053154,-500.0,0.0003041,4]
[341537934,1730967053165,-500.0,0.0003041,4]
[341537935,1730967053174,-686.67,0.0003041,4]
[341537936,1730967053184,-500.0,0.0003041,4]
[341537937,1730967053193,-500.0,0.0003041,4]
[341537938,1730967053202,-500.0,0.0003041,4]
[341537939,1730967053211,-500.0,0.0003041,4]
[341537940,1730967053222,-200.0,0.0003041,4]
[341537941,1730967053231,-324.63073899,0.0003041,4]
[341537942,1730967053240,-1373.50622908,0.0003041,4]
[341537943,1730967053892,-911.68,0.00030136,4]
[341537944,1730967053901,-200.94377092,0.0003041,4]
[341537945,1730967053911,-624.01958,0.0003041,4]
[341537946,1730967053925,-150.83042,0.0003041,4]
[341537947,1730967053934,-1096.17,0.0003041,4]
[341537948,1730967053944,-500.0,0.0003041,4]
[341537949,1730967053953,-635.46391721,0.0003041,4]
[341537950,1730967053962,-942.82,0.0003041,4]
[341537951,1730967053971,-500.0,0.0003041,4]
[341537952,1730967053981,-500.0,0.0003041,4]
[341537953,1730967053991,-500.0,0.0003041,4]
[341537954,1730967054000,-500.0,0.0003041,4]
[341537955,1730967054009,-816.05,0.0003041,4]
[341537956,1730967054018,-952.09,0.0003041,4]
[341537957,1730967054028,-500.0,0.0003041,4]
[341537958,1730967054039,-500.0,0.0003041,4]
[341537959,1730967054048,-167.34973337,0.0003041,4]
[341537960,1730967054059,-753.48,0.0003041,4]
[341537961,1730967054068,-544.98,0.0003041,4]
[341537962,1730967054077,-150.0,0.0003041,4]
[341537963,1730967054086,-151.0,0.0003041,7]
[341537964,1730967054096,-170.546352,0.0003041,7]
[341537965,1730967054105,-227.456826,0.0003041,7]
[341537966,1730967054114,-500.0,0.0003041,4]
[341537967,1730967054123,-500.0,0.0003041,4]
[341537968,1730967054133,-500.0,0.0003041,4]
[341537969,1730967054142,-500.0,0.0003041,4]
[341537970,1730967054151,-500.0,0.0003041,4]
[341537971,1730967054160,-500.0,0.0003041,4]
[341537972,1730967054169,-500.0,0.0003041,4]
[341537973,1730967054179,-500.0,0.0003041,4]
[341537974,1730967054188,-500.0,0.0003041,4]
[341537975,1730967054201,-228.47635142,0.0003041,4]
[341537976,1730967054239,-271.52364858,0.0003041,4]
[341537977,1730967054248,-600.13,0.0003041,4]
[341537978,1730967054257,-500.0,0.0003041,4]
[341537979,1730967054266,-721.19,0.0003041,4]
[341537980,1730967054276,-500.0,0.0003041,4]
[341537981,1730967054289,-525.86,0.0003041,4]
[341537982,1730967054298,-511.83,0.0003041,4]
[341537983,1730967054308,-151.0,0.0003041,7]
[341537984,1730967054317,-500.0,0.0003041,4]
[341537985,1730967054326,-535.4,0.0003041,4]
[341537986,1730967054335,-1010.48,0.0003041,4]
[341537987,1730967054344,-1003.13,0.0003041,4]
[341537988,1730967054353,-314.89324466,0.0003041,4]
[341537989,1730967054362,-500.0,0.0003041,4]
[341537990,1730967054371,-500.0,0.0003041,4]
[341537991,1730967054380,-500.0,0.0003041,4]
[341537992,1730967054389,-808.8,0.0003041,4]
[341537993,1730967054398,-500.0,0.0003041,4]
[341537994,1730967054408,-500.0,0.0003041,4]
[341537995,1730967054417,-500.0,0.0003041,4]
[341537996,1730967054426,-500.0,0.0003041,4]
[341537997,1730967054436,-1311.98,0.0003041,4]
[341537998,1730967054445,-500.0,0.0003041,4]
[341537999,1730967054454,-500.0,0.0003041,4]
[341538000,1730967054463,-500.0,0.0003041,4]
[341538001,1730967054473,-930.55,0.0003041,4]
[341538002,1730967054482,-500.0,0.0003041,4]
[341538003,1730967054492,-677.09,0.0003041,4]
[341538004,1730967054502,-500.0,0.0003041,4]
[341538005,1730967054511,-500.0,0.0003041,4]
[341538006,1730967054520,-703.05,0.0003041,4]
[341538007,1730967054530,-703.24,0.0003041,4]
[341538008,1730967054539,-3427.27,0.0003041,4]
[341538009,1730967054548,-1719.29,0.0003041,4]
[341538010,1730967054557,-520.45617326,0.0003041,4]
[341538011,1730967054567,-500.0,0.0003041,4]
[341538012,1730967054576,-500.0,0.0003041,4]
[341538013,1730967054585,-500.0,0.0003041,4]
[341538014,1730967054594,-1305.71,0.0003041,4]
[341538015,1730967054604,-501.75,0.0003041,4]
[341538016,1730967054613,-500.0,0.0003041,4]
[341538017,1730967054623,-500.0,0.0003041,4]
[341538018,1730967054632,-617.7585981,0.0003041,4]
[341538019,1730967054641,-500.0,0.0003041,4]
[341538020,1730967054651,-729.48,0.0003041,4]
[341538021,1730967054660,-555.11,0.0003041,4]
[341538022,1730967054669,-712.04,0.0003041,4]
[341538023,1730967054678,-500.0,0.0003041,4]
[341538024,1730967054688,-764.13,0.0003041,4]
[341538025,1730967054697,-500.0,0.0003041,4]
[341538026,1730967054707,-1473.06,0.0003041,4]
[341538027,1730967054716,-500.0,0.0003041,4]
[341538028,1730967054726,-500.0,0.0003041,4]
[341538029,1730967054737,-500.0,0.0003041,4]
[341538030,1730967054747,-1225.57,0.0003041,4]
[341538031,1730967054757,-500.0,0.0003041,4]
[341538032,1730967054767,-500.0,0.0003041,4]
[341538033,1730967054776,-1905.4,0.0003041,4]
[341538034,1730967054789,-798.88,0.0003041,4]
[341538035,1730967054798,-500.0,0.0003041,4]
[341538036,1730967054808,-500.0,0.0003041,4]
[341538037,1730967054817,-500.0,0.0003041,4]
[341538038,1730967054826,-500.0,0.0003041,4]
[341538039,1730967054836,-500.0,0.0003041,4]
[341538040,1730967054845,-500.0,0.0003041,4]
[341538041,1730967054855,-500.0,0.0003041,4]
[341538042,1730967054864,-255.66397096,0.0003041,4]
[341538043,1730967054874,-565.52,0.0003041,4]
[341538044,1730967054883,-500.0,0.0003041,4]
[341538045,1730967054893,-631.83,0.0003041,4]
[341538046,1730967054902,-509.68,0.0003041,4]
[341538047,1730967054912,-154.18256113,0.0003041,4]
[341538048,1730967054921,-500.0,0.0003041,4]
[341538049,1730967054931,-500.0,0.0003041,4]
[341538050,1730967054941,-612.04,0.0003041,4]
[341538051,1730967054950,-500.0,0.0003041,4]
[341538052,1730967054961,-500.0,0.0003041,4]
[341538053,1730967054973,-542.99,0.0003041,4]
[341538054,1730967054983,-500.0,0.0003041,4]
[341538055,1730967054993,-500.0,0.0003041,4]
[341538056,1730967055003,-500.0,0.0003041,4]
[341538057,1730967055013,-500.0,0.0003041,4]
[341538058,1730967055023,-503.37,0.0003041,4]
[341538059,1730967055035,-500.0,0.0003041,4]
[341538060,1730967055045,-525.42,0.0003041,4]
[341538061,1730967055057,-524.53,0.0003041,4]
[341538062,1730967055068,-527.83,0.0003041,4]
[341538063,1730967055078,-1096.77141531,0.0003041,4]
[341538066,1730967745183,157.53,0.00015342,2]
[341538068,1730967748268,172.555,0.000174,2]
[341538069,1730967879038,150.0,0.0002001,2]
[341538071,1730967908961,13946.635,0.00016,2]
[341538072,1730967908991,5000.0,0.00016,2]
[341538073,1730967909023,1130086.4394142,0.00016,2]
[341538074,1730967909055,10000.0,0.00016,2]
[341538075,1730967909087,945.0,0.00016,2]
[341538076,1730967909116,78046.0,0.00016,2]
[341538077,1730967909142,8500.0,0.00016,2]
[341538078,1730967909172,55000.0,0.00016,2]
[341538079,1730967909204,7273.0,0.00016,2]
[341538080,1730967909229,55000.0,0.00016,2]
[341538081,1730967909260,3010.57700071,0.00016,2]
[341538082,1730968054147,-250.0,0.00021,2]
[341538083,1730968054175,-1681.76609793,0.00022,2]
[341538084,1730968054205,-390.76202903,0.000229,2]
[341538085,1730968054237,-300.0,0.00023,2]
[341538086,1730968054268,-3035.48128195,0.00024632,2]
[341538087,1730968054294,-500.0,0.00024932,2]
[341538088,1730968054323,-350.0,0.00025,2]
[341538089,1730968054354,-2072.95776069,0.00025,2]
[341538090,1730968054387,-882.36873101,0.00026138,2]
[341538091,1730968084315,42981.73569524,0.000145,3]
[341538092,1730968086389,157213.02524021,0.00015,2]
[341538093,1730968101433,753.62032686,0.0001439,2]
[341538094,1730968158186,-13151.47056057,0.00023922,2]
[341538095,1730968158208,-7205.13983362,0.0002401,2]
[341538096,1730968158229,-230.66663079,0.00025,120]
[341538097,1730968158251,-7353.61951094,0.00025,2]
[341538098,1730968158273,-3651.0673336,0.00025,7]
[341538099,1730968158294,-167.55126899,0.00026138,2]
[341538100,1730968158315,-2050.17906226,0.000264,2]
[341538101,1730968158337,-400.0,0.00027,2]
[341538102,1730968158359,-500.0,0.000274,7]
[341538103,1730968158381,-2026.0,0.000277,3]
[341538104,1730968158408,-200.0,0.00027849,7]
[341538105,1730968158430,-250.0,0.00027851,2]
[341538106,1730968158453,-289.29,0.00027878,120]
[341538107,1730968158476,-150.0,0.00027878,2]
[341538108,1730968158497,-187.25,0.00027894,2]
[341538109,1730968158518,-279.06,0.00027969,2]
[341538110,1730968158539,-2093.59512671,0.00027971,2]
[341538115,1730968162116,-6813.41487329,0.00027971,2]
[341538116,1730968162141,-512.0,0.00028,2]
[341538117,1730968162164,-183.21,0.00028086,2]
[341538118,1730968162187,-173.92,0.00028185,2]
[341538119,1730968162208,-183.21,0.00028227,2]
[341538120,1730968162229,-290.12,0.00028343,120]
[341538121,1730968163096,-195.73,0.0002835,30]
[341538122,1730968163117,-183.21,0.00028367,2]
[341538123,1730968163137,-163.25,0.00028539,2]
[341538124,1730968171932,997.42,0.0002596,2]
[341538125,1730968172294,997.42,0.00028224,2]
[341538126,1730968185273,185.94,0.00028097,30]
[341538135,1730968223964,164.69,0.00015342,2]
[341538138,1730968232265,-924.4559214,0.00028947,2]
[341538145,1730968232324,-1088.5440786,0.00028947,2]
[341538147,1730968232333,-450.0,0.00029,2]
[341538148,1730968232343,-183.67,0.00029015,2]
[341538149,1730968232352,-183.24,0.00029242,2]